[Event "45th FIDE Womens Olympiad 2024"]
[Site "Budapest"]
[Date "2024.09.16"]
[Round "6.5"]
[White "Gaal, Zsoka"]
[Black "Cori T., Deysi"]
[Result "1-0"]
[ECO "A50"]
[WhiteElo "2385"]
[BlackElo "2366"]
[Annotator "TA"]
[PlyCount "51"]
[EventDate "2024.09.05"]
[EventType "team-tourn"]
[EventCountry "HUN"]
[SourceTitle "playchess.com"]
[Source "ChessBase"]
[SourceQuality "1"]
[WhiteTeam "Hungary"]
[BlackTeam "Peru"]
[WhiteTeamCountry "HUN"]
[BlackTeamCountry "PER"]
[TimeControl "40/5400+30:1800+30"]

{[%evp 11,51,33,38,36,45,29,36,0,99,37,36,39,31,0,47,58,81,-26,66,-81,-72,-156,81,83,141,142,143,-54,238,204,853,736,835,891,917,884,908,867,942,912,29979,29979]} 1. d4 {[%emt 0:00:09]} e6 {[%emt 0:00:28]} 2. c4 {[%emt 0:00:19]} b6 {[%emt 0:00:07]} 3. a3 {[%emt 0:00:32]} Bb7 {[%emt 0:13:04]} 4. Nc3 {[%emt 0:00:49]} Nf6 {[%emt 0:03:05]} 5. d5 {[%emt 0:01:19]} exd5 {[%emt 0:03:54]} 6. cxd5 {[%emt 0:00:29]} Bd6 {[%emt 0:00:07]} 7. Nf3 {[%emt 0:02:12] Prevents Be5} O-O {[%emt 0:00:05]} 8. Bg5 {[%emt 0:01:35]} h6 {[%emt 0:07:40]} 9. h4 {[%emt 0:00:37][%cal Od1c2] White is slightly better.} c5 {[%emt 0:14:47] [#]} (9... hxg5 $11 10. hxg5 Nh7) 10. Qc2 {[%emt 0:07:58]} Be7 $1 $14 {[%emt 0:08:38][%cal Of6d5] [#]} 11. O-O-O $1 {[%emt 0:05:17][%cal Od5d6] Threatens to win with d6!} d6 $1 {[%emt 0:00:54]} 12. e3 {[%emt 0:03:28]} a6 {[%emt 0:05:28] [#]} (12... Nbd7 $11) 13. g4 $1 $36 {[%emt 0:15:44][%mdl 2048] White has the initiative.} Nxg4 {[%emt 0:05:02][%cal Ob6b5] [#]} 14. Bd3 {[%emt 0:01:09][%cal Od1g1] Hoping for Rdg1! White is more active.} Bc8 {[%emt 0:08:38]} (14... hxg5 $2 15. hxg5 $18) ({Black should try} 14... Nd7 $1 $11) 15. Bxe7 {[%emt 0:18:32]} (15. Bh7+ Kh8 16. Rdg1 g6 (16... hxg5 $2 17. hxg5 $18) 17. Bxh6 Nxh6 $15) (15. Bf5 $1 $14 {stays ahead.} f6 (15... hxg5 $2 16. Bh7+ Kh8 17. hxg5 $18) 16. Bxg4 Bxg4 (16... fxg5 $2 17. Be6+ Bxe6 18. dxe6 $18) 17. Bxh6) 15... Qxe7 $17 {[%emt 0:00:01]} 16. Ng5 {[%emt 0:00:18]} Ne5 $2 {[%emt 0:11:49]} (16... hxg5 17. Bh7+ Kh8 18. hxg5 $16) (16... Nd7 $17 {[%cal Od7f6] stays on course. aiming for ...Ndf6!} 17. Bxa6 hxg5 18. hxg5 g6 (18... Bxa6 19. Qh7#) 19. Bxc8 Rfxc8) 17. Bxa6 $1 $16 {[%emt 0:12:03][%csl Gg5][%cal Rc2h7]} hxg5 {[%emt 0:09:39] [#]} (17... g6 $142 18. Bxc8 Rxc8) 18. hxg5 $1 {[%emt 0:00:18]} Ng6 {[%emt 0:00:21]} (18... Nxa6 19. Qh7#) 19. Bd3 {[%emt 0:01:27]} ({White must play} 19. Bxc8 $16 {[%cal Oc8e6] Be6! would now be deadly.} Rxc8 20. Rh3) 19... Qe5 {[%emt 0:03:04][%mdl 8192] Loses the game.} (19... Qxg5 20. f4 Qe7 21. Qe2 $11) (19... Nd7 $1 $15 {keeps the upper hand.}) 20. Ne4 $18 {[%emt 0:04:09] Strongly threatening f4.} c4 $2 {[%emt 0:02:26] [#]} (20... Qxd5 $2 {too greedy.} 21. Nf6+ gxf6 22. Bxg6 $18) (20... Rxa3 21. bxa3 c4 22. Nf6+ (22. Qxc4 Bg4 $18) (22. Bxc4 Bf5 $16) 22... gxf6 23. Bxg6 fxg5) 21. f4 $1 {[%emt 0:00:08]} Nxf4 {[%emt 0:00:53]} 22. exf4 {[%emt 0:07:00]} Qxf4+ {[%emt 0:00:10]} 23. Qd2 {[%emt 0:00:22]} Qxd2+ {[%emt 0:01:02]} 24. Rxd2 {[%emt 0:00:09][%cal Od2h2] White wants to mate with Rdh2!} f5 {[%emt 0:00:30][%cal Bf7f5,Bf5e4][%mdl 32] [#]} 25. g6 $1 {[%emt 0:02:14][%cal Od2h2] Rdh2! would kill now.} fxe4 {[%emt 0:00:34] [#]} (25... Rd8 26. Ng5) 26. Rdh2 $1 {[%emt 0:00:11] Weighted Error Value: White=0.40/Black=0.99.  Loses game:     	---       	Black=1      Mistake:       	White=4     	Black=6      Inaccurate:     	White=2     	---        OK:         	White=5     	Black=2      Best:        	---       	Black=1      Strong:       	White=2     	Black=2} 1-0

[Event "45th FIDE Womens Olympiad 2024"]
[Site "Budapest"]
[Date "2024.09.16"]
[Round "6.6"]
[White "Aliaga Fernandez, Ingrid Y"]
[Black "Hoang, Thanh Trang"]
[Result "1/2-1/2"]
[ECO "C11"]
[WhiteElo "2111"]
[BlackElo "2351"]
[Annotator "TA"]
[PlyCount "77"]
[EventDate "2024.09.05"]
[EventType "team-tourn"]
[EventCountry "HUN"]
[SourceTitle "playchess.com"]
[Source "ChessBase"]
[SourceQuality "1"]
[WhiteTeam "Peru"]
[BlackTeam "Hungary"]
[WhiteTeamCountry "PER"]
[BlackTeamCountry "HUN"]
[TimeControl "40/5400+30:1800+30"]

{[%evp 28,77,-2,-27,-12,-22,12,-46,-35,-41,-43,-58,-29,-22,-15,-21,16,17,48,0,29,37,70,62,67,66,108,109,110,119,207,210,199,200,728,737,637,688,29992,-97,29993,29994,29994,0,0,0,0,0,0,0,0,0]} 1. e4 {[%emt 0:00:04][%cal Be2e4,Be4e5][%mdl 32]} e6 {[%emt 0:00:18]} 2. d4 {[%emt 0:00:05]} d5 {[%emt 0:00:10]} 3. Nc3 {[%emt 0:00:09]} Nf6 {[%emt 0:00:38]} 4. e5 {[%emt 0:00:15]} Nfd7 {[%emt 0:00:12]} 5. f4 {[%emt 0:00:07]} c5 {[%emt 0:00:20]} 6. Nf3 {[%emt 0:00:12]} Nc6 {[%emt 0:00:24]} 7. Be3 {[%emt 0:00:06]} a6 {[%emt 0:00:33]} 8. Qd2 {[%emt 0:00:15]} b5 {[%emt 0:00:38][%cal Bb7b5,Bb5b4][%mdl 32]} 9. dxc5 {[%emt 0:01:40]} Bxc5 {[%emt 0:00:22]} 10. Bxc5 {[%emt 0:00:22]} Nxc5 {[%emt 0:00:12]} 11. Qf2 {[%emt 0:00:39]} Qb6 {[%emt 0:01:09]} 12. Bd3 {[%emt 0:00:44]} b4 {[%emt 0:01:42]} 13. Ne2 {[%emt 0:02:11]} a5 {[%emt 0:00:40]} 14. O-O {[%emt 0:00:09]} Ba6 {[%emt 0:00:47]} 15. Rfd1 {[%emt 0:01:38]} h6 {[%emt 0:04:22]} 16. Nfd4 {[%emt 0:09:20]} Ne7 {[%emt 0:07:08]} 17. h3 {[%emt 0:46:18]} (17. Nb3 $11 Na4 18. Qxb6 Nxb6 19. Nbd4) 17... O-O $15 {[%emt 0:06:02] Black is slightly better.} 18. Qe3 {[%emt 0:00:25]} Rfc8 {[%emt 0:13:42]} 19. Rf1 {[%emt 0:03:31][%cal Bd1f1,Bf1f3,Bf3g3][%mdl 32]} Na4 {[%emt 0:05:00]} 20. Rab1 {[%emt 0:01:41]} Ra7 {[%emt 0:10:04]} 21. Rf3 {[%emt 0:00:19]} Bxd3 {[%emt 0:06:31]} (21... Bc4 {with more complications.} 22. g4 Bxa2 23. Ra1 Nxb2 24. Nb5 d4) 22. cxd3 {[%emt 0:01:42]} Rac7 {[%emt 0:00:18]} 23. Kh2 {[%emt 0:01:13]} (23. g4 $1 $14 {should be considered.}) 23... Nc6 {[%emt 0:06:08]} 24. Rg3 {[%emt 0:07:38]} Ne7 {[%emt 0:05:50] Prevents f5.} 25. b3 {[%emt 0:02:24]} Nc5 {[%emt 0:07:35]} 26. Rf1 {[%emt 0:01:52]} Nd7 {[%emt 0:01:28]} 27. f5 $1 {[%emt 0:12:10]} Nxf5 {[%emt 0:01:20]} 28. Nxf5 {[%emt 0:00:16][%cal Oe3h6] Qxh6! would kill now.} exf5 {[%emt 0:00:14]} (28... Qxe3 $16 29. Nxe3 Nxe5) 29. Nd4 $18 {[%emt 0:00:04]} Re8 {[%emt 0:06:32]} 30. Rxf5 {[%emt 0:00:05] Qf4 is the strong threat.} (30. Nxf5 Qxe3 (30... Rxe5 $2 {too greedy.} 31. Rxg7+ Kh8 32. Qg3 $18) 31. Rxe3 Rxe5 $16 (31... Nxe5 32. Rfe1 $16)) 30... Nf8 $2 {[%emt 0:01:04] [#]} (30... Re6 31. Qf4 Rg6) 31. Rxg7+ $3 {[%emt 0:02:31][%mdl 512]} Kxg7 {[%emt 0:01:21]} 32. Rf6 {[%emt 0:00:04]} Qb8 {[%emt 0:04:05]} 33. Qxh6+ {[%emt 0:02:27]} Kg8 {[%emt 0:00:06] [#]} 34. Nf5 $1 {[%emt 0:00:08][%csl Gf5][%cal Rh6g7]} Ne6 {[%emt 0:00:12] [#]} 35. Rxe6 $2 {[%emt 0:01:01]} fxe6 $11 {[%emt 0:00:11] The position is equal.} 36. Qg6+ {[%emt 0:00:03]} Kh8 {[%emt 0:01:05]} 37. Qf6+ {[%emt 0:00:07]} Kg8 {[%emt 0:00:32]} 38. Qg6+ {[%emt 0:00:06]} Kh8 {[%emt 0:00:07]} 39. Qf6+ {[%emt 0:00:06] Weighted Error Value: White=0.37/Black=0.49.  Mistake:       	White=2     	Black=2      Inaccurate:     	---       	Black=7      OK:         	White=8     	Black=7      Best:        	White=1     	---        Strong:       	White=1     	---        Brilliant:      	White=1     	---} 1/2-1/2

[Event "45th FIDE Womens Olympiad 2024"]
[Site "Budapest"]
[Date "2024.09.16"]
[Round "6.7"]
[White "Terbe, Julianna"]
[Black "Contreras Huaman, Fiorella"]
[Result "1/2-1/2"]
[ECO "D13"]
[WhiteElo "2245"]
[BlackElo "2168"]
[Annotator "TA"]
[PlyCount "144"]
[EventDate "2024.09.05"]
[EventType "team-tourn"]
[EventCountry "HUN"]
[SourceTitle "playchess.com"]
[Source "ChessBase"]
[SourceQuality "1"]
[WhiteTeam "Hungary"]
[BlackTeam "Peru"]
[WhiteTeamCountry "HUN"]
[BlackTeamCountry "PER"]
[TimeControl "40/5400+30:1800+30"]

{[%evp 20,144,34,20,35,23,26,22,44,29,42,14,10,11,16,8,14,-2,31,30,29,34,25,28,16,0,0,0,16,20,193,-30,-26,-28,-34,-32,-8,-12,-20,-11,-13,-13,-12,-40,-34,-64,-64,-64,-64,-64,-64,-64,-64,-64,-64,-64,-64,-64,-64,-64,-26,-64,-64,-64,-64,-64,-64,-64,-64,-64,-64,-64,-64,-64,-64,-64,-64,-64,-64,-64,-64,-71,-71,-72,-64,-64,-64,-87,-72,-72,-72,-72,-72,-72,-72,-72,-72,-72,-8,-8,-8,-8,-8,-8,-8,-8,-8,-8,0,-8,-8,-8,-8,-8,-8,-8,-8,-8,0,-8,0,-8,0,0,0,0,0]} 1. d4 {[%emt 0:00:03]} d5 {[%emt 0:00:07]} 2. c4 {[%emt 0:00:10]} c6 {[%emt 0:00:08]} 3. cxd5 {[%emt 0:00:14]} cxd5 {[%emt 0:00:10]} 4. Nc3 {[%emt 0:00:18]} Nf6 {[%emt 0:00:29]} 5. Bf4 {[%emt 0:00:13]} Nc6 {[%emt 0:00:33]} 6. e3 {[%emt 0:00:14]} a6 {[%emt 0:03:31]} 7. Be2 {[%emt 0:01:39]} e6 {[%emt 0:09:29]} 8. Nf3 {[%emt 0:03:09]} Bd6 {[%emt 0:05:31]} 9. Bxd6 {[%emt 0:03:15]} Qxd6 {[%emt 0:00:11]} 10. O-O {[%emt 0:00:30]} O-O {[%emt 0:10:52]} 11. Rc1 {[%emt 0:07:27]} b5 {[%emt 0:06:01][%cal Bb7b5,Bb5b4][%mdl 32]} 12. a4 {[%emt 0:06:02]} b4 {[%emt 0:00:40]} 13. Nb1 {[%emt 0:00:09]} Bd7 {[%emt 0:07:38]} 14. Nbd2 {[%emt 0:01:23]} Na5 {[%emt 0:02:48]} 15. Ne5 {[%emt 0:06:28]} Rfc8 {[%emt 0:05:51]} 16. Rxc8+ {[%emt 0:17:25]} Rxc8 {[%emt 0:00:14]} 17. Bd3 {[%emt 0:00:10]} Be8 {[%emt 0:09:09]} 18. f4 {[%emt 0:07:45]} b3 {[%emt 0:04:59]} 19. Nxb3 {[%emt 0:07:15]} Bxa4 {[%emt 0:04:00]} 20. Qa1 {[%emt 0:00:07]} Nxb3 {[%emt 0:02:22]} 21. Qxa4 {[%emt 0:00:06]} Qb6 {[%emt 0:03:20]} 22. Nd7 {[%emt 0:16:59]} (22. Bxa6 $2 Ra8 23. Qb5 Rxa6 $19) (22. Qxa6 {simplifies} Qxa6 23. Bxa6 Rc2 24. Rb1) 22... Nxd7 {[%emt 0:00:45]} 23. Qxd7 {[%emt 0:00:05]} Rb8 {[%emt 0:16:27][%cal Ob3d4] ...Nxd4! would now be deadly.} 24. f5 {[%emt 0:10:24]} Nxd4 $2 {[%emt 0:01:04]} 25. fxe6 $2 {[%emt 0:01:32]} (25. exd4 $18 {aiming for fxe6.} Qxd4+ 26. Rf2) 25... Qxe6 $11 {[%emt 0:00:07]} 26. Qxe6 {[%emt 0:03:06]} ({Don't go for} 26. Rxf7 $2 Qxe3+ (26... Qxf7 $2 {loses.} 27. Bxh7+ Kxh7 28. Qxf7 $18) 27. Kh1 Qxd3 $19) 26... Nxe6 {[%emt 0:00:07]} 27. Bxa6 {[%emt 0:00:05]} Rxb2 {[%emt 0:00:24][%mdl 4096] Endgame. KRB-KRN} 28. Rd1 $1 {[%emt 0:00:07] Against Rd2} Rb6 {[%emt 0:01:20]} 29. Be2 {[%emt 0:01:00]} Rd6 {[%emt 0:00:54]} 30. Bf3 {[%emt 0:02:17]} d4 {[%emt 0:03:17]} 31. exd4 {[%emt 0:02:15]} Rxd4 {[%emt 0:00:09]} 32. Ra1 {[%emt 0:01:05]} g6 {[%emt 0:00:42]} 33. g3 {[%emt 0:00:42]} h5 {[%emt 0:00:35]} 34. h4 {[%emt 0:00:26]} Rd3 {[%emt 0:00:12]} 35. Kf2 {[%emt 0:01:07]} Nd4 {[%emt 0:01:06]} 36. Ra8+ {[%emt 0:00:48]} Kg7 {[%emt 0:00:09]} 37. Be4 {[%emt 0:00:03]} Rc3 {[%emt 0:00:37]} 38. Ra7 {[%emt 0:00:48]} Ne6 {[%emt 0:01:11]} 39. Bd5 {[%emt 0:01:29]} Rc7 {[%emt 0:00:11]} 40. Ra2 {[%emt 0:01:23]} Nd4 {[%emt 0:00:19]} 41. Be4 {[%emt 0:01:41]} Re7 {[%emt 0:01:35]} 42. Bd3 {[%emt 0:01:46]} Re6 {[%emt 0:01:39]} 43. Ra4 {[%emt 0:03:26]} Rf6+ {[%emt 0:01:27]} 44. Kg2 {[%emt 0:01:33]} Nf3 {[%emt 0:02:48] White must now prevent ...Ne1+.} 45. Be4 {[%emt 0:02:31]} Ne5 {[%emt 0:00:14]} 46. Ra3 {[%emt 0:00:13]} Rb6 {[%emt 0:01:05]} 47. Bd5 {[%emt 0:04:47]} Rb2+ {[%emt 0:01:14]} 48. Kg1 {[%emt 0:00:26]} Rd2 {[%emt 0:00:23]} 49. Be4 {[%emt 0:01:15]} Rd4 {[%emt 0:01:12]} 50. Re3 {[%emt 0:02:35]} Ng4 {[%emt 0:01:03]} 51. Re2 {[%emt 0:01:07]} f5 {[%emt 0:00:26]} 52. Bf3 {[%emt 0:02:17]} Kf6 {[%emt 0:01:05]} (52... Rd3 $5 53. Kg2 $8 Nh6 $11) 53. Bxg4 {[%emt 0:04:49]} Rxg4 $15 {[%emt 0:00:08] KR-KR} 54. Kf2 {[%emt 0:01:37] [#]} f4 $1 {[%emt 0:00:20]} 55. gxf4 {[%emt 0:00:10]} Rxh4 {[%emt 0:00:35]} (55... Kf5 $5 56. Kf3 $8 Rxf4+ 57. Kg3 Re4 $11) 56. Kg3 {[%emt 0:00:23] Repels Rh2} Rg4+ {[%emt 0:01:21]} 57. Kf3 {[%emt 0:00:05] [#]} Rg1 $1 {[%emt 0:00:47] Against Re1} 58. Ra2 {[%emt 0:01:47]} h4 {[%emt 0:06:51]} ({Black should play} 58... Rb1 $17) 59. Ra7 $11 {[%emt 0:03:11] The position is equal.} Rg3+ {[%emt 0:01:53]} 60. Ke4 $1 {[%emt 0:00:15]} h3 {[%emt 0:03:04]} 61. Rh7 {[%emt 0:00:05]} Rb3 {[%emt 0:00:57]} 62. Rh8 $1 {[%emt 0:01:39]} Ke6 {[%emt 0:00:44]} (62... Kg7 $5 63. Rh4 $8 Kf6 $17) 63. Rh7 {[%emt 0:01:03]} Kf6 {[%emt 0:02:14]} 64. Rh8 {[%emt 0:00:35]} Kg7 {[%emt 0:00:08]} 65. Rh4 {[%emt 0:00:06]} Rg3 {[%emt 0:07:23]} 66. Ke5 {[%emt 0:01:02]} Re3+ {[%emt 0:00:23]} 67. Kd4 {[%emt 0:00:05]} Ra3 {[%emt 0:00:32]} 68. Ke4 {[%emt 0:00:17]} Rg3 {[%emt 0:01:23]} 69. Ke5 {[%emt 0:00:04]} Rb3 {[%emt 0:00:08]} (69... Re3+ 70. Kd4 Rb3 71. Ke5 $17) 70. Ke4 {[%emt 0:00:15]} g5 {[%emt 0:00:54]} 71. Rh5 {[%emt 0:01:00]} Rb4+ {[%emt 0:01:58]} (71... g4 $5 72. Rg5+ $8 Kh6 73. Rxg4 Kh5 $11) 72. Kf5 {[%emt 0:01:49]} Rxf4+ {[%emt 0:00:21] Weighted Error Value: White=0.13 (very precise) /Black=0.13 (very precise) .  Loses game:     	---       	Black=1      Missed win:     	White=1     	---        Mistake:       	---       	Black=1      Inaccurate:     	White=4     	Black=2      OK:         	White=25    	Black=21     Best:        	White=6     	---        Strong:       	White=3     	Black=2} 1/2-1/2

[Event "45th FIDE Womens Olympiad 2024"]
[Site "Budapest"]
[Date "2024.09.16"]
[Round "6.8"]
[White "Garcia Andrada, Heidy Nicole"]
[Black "Papp, Petra"]
[Result "1-0"]
[ECO "A25"]
[WhiteElo "2003"]
[BlackElo "2259"]
[Annotator "TA"]
[PlyCount "117"]
[EventDate "2024.09.05"]
[EventType "team-tourn"]
[EventCountry "HUN"]
[SourceTitle "playchess.com"]
[Source "ChessBase"]
[SourceQuality "1"]
[WhiteTeam "Peru"]
[BlackTeam "Hungary"]
[WhiteTeamCountry "PER"]
[BlackTeamCountry "HUN"]
[TimeControl "40/5400+30:1800+30"]

{[%evp 36,117,46,47,54,31,32,14,15,18,24,18,27,0,0,-14,0,-13,0,-22,0,0,30,26,86,75,185,182,214,126,209,195,214,0,143,106,148,139,156,64,51,68,77,62,843,0,0,8,101,108,305,299,495,489,1227,1207,1677,855,816,785,839,798,922,886,1862,1964,2592,1675,29986,1803,29989,29990,29990,29983,29984,29983,29983,29981,29981,29982,29980,29982,29986,29987]} 1. c4 {[%emt 0:00:03]} e5 {[%emt 0:01:34]} 2. Nc3 {[%emt 0:00:10]} Nc6 {[%emt 0:00:08]} 3. g3 {[%emt 0:00:57]} Bc5 {[%emt 0:00:59]} 4. Bg2 {[%emt 0:00:09]} a6 {[%emt 0:01:26]} 5. e3 {[%emt 0:01:16]} d6 {[%emt 0:00:50]} 6. Nge2 {[%emt 0:00:22] A25: English Opening vs King's Indian with ...Nc6 but without early d3.} Ba7 {[%emt 0:00:56]} 7. d4 {[%emt 0:00:29]} Nf6 {[%emt 0:02:02]} 8. h3 {[%emt 0:07:58]} O-O {[%emt 0:00:38]} 9. O-O {[%emt 0:00:19]} h6 {[%emt 0:02:32]} 10. a3 {[%emt 0:01:16]} Re8 {[%emt 0:02:02]} 11. b4 {[%emt 0:05:18]} Rb8 {[%emt 0:08:01]} 12. d5 $146 {[%emt 0:10:32]} ({Predecessor:} 12. Qd3 Bd7 13. Kh2 Ne7 14. Bb2 Bf5 15. e4 Bh7 16. d5 Nd7 17. Rad1 Rf8 18. Bc1 {0-1 Kern,G (2329)-Mainka,R (2414) Recklinghausen op 13th 2002 (8)}) 12... Ne7 {[%emt 0:00:50]} 13. e4 {[%emt 0:00:47]} Nh7 {[%emt 0:05:51]} 14. Kh2 {[%emt 0:01:10]} Ng6 {[%emt 0:04:19]} 15. Qd3 {[%emt 0:10:03]} Rf8 {[%emt 0:02:34]} 16. Be3 {[%emt 0:02:46]} Bxe3 {[%emt 0:11:11]} 17. Qxe3 {[%emt 0:05:38]} Qe7 {[%emt 0:04:01]} 18. Rac1 {[%emt 0:02:16]} Bd7 {[%emt 0:01:30]} 19. c5 {[%emt 0:03:40]} b6 {[%emt 0:02:48]} 20. cxd6 {[%emt 0:04:06]} cxd6 {[%emt 0:01:57]} 21. Rc2 {[%emt 0:04:32]} Rfc8 {[%emt 0:04:08]} 22. Rfc1 {[%emt 0:00:46]} h5 {[%emt 0:02:04]} 23. Qd3 {[%emt 0:09:39]} b5 {[%emt 0:01:41]} 24. Nb1 {[%emt 0:01:03]} Qd8 {[%emt 0:09:08]} 25. Nd2 {[%emt 0:05:43]} h4 {[%emt 0:01:19]} 26. Nb3 {[%emt 0:03:52]} Qb6 {[%emt 0:03:26]} 27. Ng1 {[%emt 0:05:24]} Rf8 {[%emt 0:05:28]} 28. g4 {[%emt 0:04:30]} Nf4 {[%emt 0:05:31]} 29. Qe3 {[%emt 0:00:11]} Qd8 {[%emt 0:00:39]} (29... Qxe3 $11 30. fxe3 Nxg2 31. Kxg2 Nf6) 30. Na5 $16 {[%emt 0:00:51]} Qf6 {[%emt 0:01:01]} (30... Rc8 $16) 31. Rc7 $18 {[%emt 0:01:02]} Be8 {[%emt 0:01:17]} 32. R1c2 {[%emt 0:03:57]} (32. Nb7 $18) 32... Ng5 {[%emt 0:00:30]} (32... Qg6 $16 33. R2c3 Ra8) 33. Nb7 {[%emt 0:01:26]} Ra8 {[%emt 0:04:21]} 34. Na5 $2 {[%emt 0:01:22]} (34. Ne2 $18) 34... Qg6 {[%emt 0:01:21]} (34... Rb8 $1 $11 {keeps the balance.}) 35. Bh1 $16 {[%emt 0:00:50]} Kh8 {[%emt 0:01:32]} 36. Nb7 {[%emt 0:03:19]} Rb8 {[%emt 0:01:11]} 37. Qa7 {[%emt 0:00:39]} (37. R2c3 $16) 37... Rxb7 $1 $14 {[%emt 0:01:13]} 38. Qxb7 {[%emt 0:00:29]} Nxe4 {[%emt 0:01:38]} 39. Rc8 {[%emt 0:00:37]} (39. Qxa6 Nf6 $11) 39... Nc5 $2 {[%emt 0:03:20][%mdl 8192]} (39... Rg8 $14) 40. R8xc5 $2 {[%emt 0:00:32]} (40. bxc5 $2 Qxc2 41. Bf3 Qxf2+ 42. Kh1 Nxh3 (42... dxc5 43. d6 $11) 43. Nxh3 Qxf3+ $19) (40. R2xc5 $18 Qf6 41. Rc3) 40... dxc5 $11 {[%emt 0:01:00]} 41. Rxc5 {[%emt 0:30:29]} Qf6 {[%emt 0:04:51]} (41... Qd3 $11 42. Rc8 (42. Qxa6 $2 Qd2 $19) 42... Qd4 (42... Qxa3 43. d6 $14)) 42. Be4 $16 {[%emt 0:00:00]} g6 $2 {[%emt 0:19:13] [#]} (42... Ne2 $16 43. Kg2 (43. Nxe2 Qxf2+ 44. Bg2 Qxe2 $11) 43... Nf4+ 44. Kh1 Kg8) 43. Rc8 $1 $18 {[%emt 0:00:00]} Qd6 $2 {[%emt 0:04:22]} (43... Kg7 44. Qb8 Ne2) 44. Qa8 $18 {[%emt 0:00:00]} Qd7 {[%emt 0:01:30]} (44... Kg7 $142 45. Rxe8 Rxe8 46. Qxe8 Nxd5) 45. Rd8 $18 {[%emt 0:00:00]} (45. Qxa6 f5 46. gxf5 gxf5 $14) 45... Qc7 {[%emt 0:04:15]} 46. Rxe8 {[%emt 0:00:00]} Rxe8 {[%emt 0:00:02]} 47. Qxe8+ {[%emt 0:00:00]} Kg7 {[%emt 0:00:01]} 48. Qc6 {[%emt 0:00:00]} Qd8 {[%emt 0:00:07]} 49. Nf3 {[%emt 0:00:00]} Qb8 {[%emt 0:00:44]} 50. d6 {[%emt 0:00:42]} Ne6 {[%emt 0:00:29]} 51. Qd5 {[%emt 0:01:00]} Qb6 {[%emt 0:01:08]} 52. Kg1 {[%emt 0:00:24]} ({Worse is} 52. Nxe5 Qxf2+ 53. Bg2 Qg3+ 54. Kg1 Qe1+ 55. Bf1 Qe3+ 56. Kh1 Qe1 $11) (52. Qxe5+ $142 Kg8 53. Kg2 (53. Nxh4 Qxf2+ 54. Ng2 Nf8 $18) 53... Nd8 54. Bd5 (54. Nxh4 Ne6 $18) 54... a5 55. Ng5 (55. Nxh4 Kh7 $18) 55... Qa7 56. Qe7 axb4 57. Qxa7) 52... a5 {[%emt 0:01:03]} 53. Qxe5+ {[%emt 0:00:16]} Kg8 {[%emt 0:00:11]} 54. Bxg6 {[%emt 0:01:07]} Qc6 {[%emt 0:00:34]} 55. Bxf7+ {[%emt 0:01:04]} Kxf7 {[%emt 0:00:30]} 56. Qxe6+ {[%emt 0:00:22]} Kxe6 {[%emt 0:00:23]} 57. Nd4+ {[%emt 0:00:06]} (57. Nxh4 $2 {is the wrong capture.} Qc1+ (57... Kxd6 $2 58. Nf5+ Kd7 59. bxa5 $19) 58. Kg2 Qxa3 (58... Kxd6 $2 59. bxa5 Qxa3 60. Nf5+ Kc5 61. a6 $19) 59. bxa5 Qxd6 $19) 57... Kxd6 {[%emt 0:00:10]} 58. Nxc6 {[%emt 0:00:06]} Kxc6 {[%emt 0:00:11]} 59. bxa5 {[%emt 0:00:23]} 1-0